bitfinex/quotes_ETHUSD_20251107
["timestamp","ask_amount","ask_price","bid_price","bid_amount"]
[1762476903094,0.9716,3329.9,3329.8,3.00318337]
[1762476903289,0.9716,3329.9,3329.7,0.1496]
[1762476903619,0.9696,3329.8,3329.1,0.001]
[1762476903776,0.4753,3329.2,3329.1,3.00475426]
[1762476903976,0.4753,3329.2,3329.1,0.001]
[1762476904214,0.9696,3329.2,3329.1,0.001]
[1762476906268,0.1496,3329.3,3329.1,3.00481484]
[1762476906556,0.1496,3329.6,3329.5,3.00344446]
[1762476906765,0.4943,3329.7,3329.6,3.00336376]
[1762476907059,0.9696,3329.7,3329.2,0.1496]
[1762476907358,0.4943,3329.7,3329.3,3.00356579]
[1762476907554,0.4943,3329.6,3329.3,3.00356579]
[1762476907759,0.4943,3329.6,3329.4,3.0035285]
[1762476908054,0.4943,3329.6,3329.2,0.1496]
[1762476908272,0.4753,3329.3,3329.1,0.001]
[1762476908581,0.4753,3329.2,3329.1,0.001]
[1762476908735,0.9696,3329.2,3329.1,0.001]
[1762476911877,3.97332461,3329.2,3329.1,0.001]
[1762476912041,0.9696,3329.2,3329.1,0.001]
[1762476913022,0.4753,3329.2,3329.1,0.001]
[1762476913658,0.4753,3329.2,3329.1,3.00481484]
[1762476914370,0.4753,3329.2,3328.7,0.1506]
[1762476914371,0.9549,3329.2,3328.7,0.1506]
[1762476914573,0.5943,3328.8,3328.7,0.1506]
[1762476914877,0.5943,3328.8,3328.7,3.1547758]
[1762476915337,1.0739,3328.8,3328.7,3.1547758]
[1762476916524,0.5943,3328.8,3328.7,3.1547758]
[1762476917865,1.0739,3328.8,3328.7,3.1547758]
[1762476918069,1.0739,3328.8,3328.7,0.1506]
[1762476918564,1.0739,3328.8,3328.7,3.1547758]
[1762476919666,1.0739,3328.8,3328.7,0.001]
[1762476920974,4.07798555,3328.8,3328.7,0.001]
[1762476921176,3.00435631,3328.5,3328.4,0.001]
[1762476921375,3.47745631,3328.5,3328.4,0.001]
[1762476921574,3.95705631,3328.5,3328.4,0.001]
[1762476921876,3.0047174,3328.1,3327.4,0.001]
[1762476922173,3.4778174,3328.1,3327.4,0.001]
[1762476922342,3.9574174,3328.1,3327.4,0.001]
[1762476923575,5.2171294,3328.1,3327.4,0.001]
[1762476923946,5.6226334,3328.1,3327.4,0.001]
[1762476924144,2.617916,3328.1,3327.4,3.00634108]
[1762476924479,5.6226334,3328.1,3327.4,0.001]
[1762476927448,3.0052592,3327.5,3327.4,0.001]
[1762476927652,3.6585592,3327.5,3327.4,0.001]
[1762476927853,4.1381592,3327.5,3327.4,0.001]
[1762476931066,1.1329,3327.5,3327.4,0.001]
[1762476931291,4.1381592,3327.5,3327.4,0.001]
[1762476931527,1.1329,3327.5,3327.4,0.001]
[1762476932790,0.6227,3327.5,3327.4,0.001]
[1762476934571,4.1075592,3327.5,3327.4,0.001]
[1762476936023,1.1023,3327.5,3327.4,0.001]
[1762476936819,4.1075592,3327.5,3327.4,0.001]
[1762476939433,5.3672712,3327.5,3327.4,0.001]
[1762476939593,5.7727752,3327.5,3327.4,0.001]
[1762476943843,2.767516,3327.5,3327.4,0.001]
[1762476944044,5.6231752,3327.5,3327.4,0.001]
[1762476946448,1.259712,3327.5,3327.4,0.1221]
[1762476946648,1.735912,3327.5,3327.4,0.001]
[1762476947144,2.194012,3327.5,3327.4,0.001]
[1762476947546,1.259712,3327.5,3327.4,0.001]
[1762476947918,1.735912,3327.5,3327.4,0.001]
[1762476948320,1.259712,3327.5,3327.4,0.001]
[1762476949763,5.6047752,3327.5,3327.4,0.001]
[1762476958150,3.41112451,3327.1,3327.0,0.001]
[1762476958369,3.88732451,3327.1,3327.0,0.001]
[1762476958571,5.60513651,3327.1,3327.0,0.001]
[1762476960256,11.36583084,3327.1,3327.0,0.001]
[1762476961066,11.48626687,3327.1,3327.0,0.001]
[1762476961277,3.41139554,3326.8,3326.1,0.001]
[1762476961478,4.67164976,3326.2,3326.1,0.001]
[1762476961665,1.259712,3326.2,3326.1,0.001]
[1762476961865,1.259712,3326.2,3326.1,0.2432]
[1762476962169,3.0055759,3327.2,3326.1,0.2432]
[1762476962170,3.00582719,3326.9,3326.1,0.56818287]
[1762476962469,0.4581,3327.6,3326.5,3.1272151]
[1762476962665,1.259712,3327.0,3326.8,0.1211]
[1762476963130,0.1496,3326.8,3326.1,0.001]
[1762476963266,0.4762,3326.9,3326.1,0.001]
[1762476963267,3.00618155,3326.5,3326.1,0.001]
[1762476963468,3.15578155,3326.5,3326.1,0.001]
[1762476963774,0.1496,3326.5,3326.1,0.001]
[1762476963975,3.15582729,3326.5,3326.1,0.001]
[1762476964175,0.1496,3326.5,3326.1,0.001]
[1762476964501,0.405504,3326.8,3326.4,0.1211]
[1762476964700,4.26587463,3326.5,3326.4,0.1211]
[1762476964997,1.259712,3326.5,3326.1,0.1221]
[1762476965198,0.405504,3326.8,3326.4,0.2422]
[1762476965411,0.405504,3326.8,3326.4,0.1211]
[1762476965412,3.00609162,3326.6,3326.4,0.1211]
[1762476965783,3.00609162,3326.6,3326.5,0.1211]
[1762476965983,3.00601656,3326.7,3326.5,0.1211]
[1762476966180,1.665216,3327.0,3326.5,0.1211]
[1762476966385,3.41123987,3327.0,3326.5,0.1211]
[1762476966707,3.00594482,3326.8,3326.5,0.1211]
[1762476967923,3.00577204,3327.0,3326.7,0.1211]
[1762476968222,0.1496,3326.7,3326.5,0.1211]
[1762476968421,3.16242657,3327.4,3326.5,0.1211]
[1762476968579,3.16242657,3327.4,3326.8,3.00589154]
[1762476968580,0.1496,3326.9,3326.8,3.00589154]
[1762476968783,0.1496,3326.9,3326.8,3.6070878]
[1762476969025,3.00535227,3327.4,3326.8,0.72229626]
[1762476969192,0.4581,3327.7,3326.8,0.1211]
[1762476969392,1.259712,3327.5,3326.8,0.1211]
[1762476969705,3.00528923,3327.5,3326.9,3.00577175]
[1762476969910,3.00528923,3327.5,3327.4,0.1211]
[1762476970283,3.00519965,3327.6,3327.4,0.1211]
[1762476970482,1.259712,3327.7,3327.4,0.1211]
[1762476970483,4.2649712,3327.5,3327.4,0.1211]
[1762476970685,0.1570307,3327.9,3327.6,0.1211]
[1762476970879,0.002,3328.0,3327.8,0.1211]
[1762476971094,0.002,3328.0,3327.9,0.1211]
[1762476971820,4.26651969,3328.0,3327.9,0.1211]
[1762476972023,1.261712,3328.0,3327.9,0.1211]
[1762476972223,0.002,3328.0,3327.9,3.24709798]
[1762476972552,0.002,3328.0,3327.9,3.87230757]
[1762476973140,0.002,3328.4,3327.9,3.87230757]
[1762476973141,0.002,3328.4,3328.3,3.00453685]
[1762476973365,0.002,3328.4,3328.3,3.12563685]
[1762476973539,0.002,3328.4,3328.3,3.24673685]
[1762476973739,0.002,3328.7,3328.6,3.00426605]
[1762476973927,0.002,3328.7,3328.6,3.72622957]
[1762476974134,0.002,3328.7,3326.4,0.001]
[1762476974135,0.4858,3328.7,3326.4,0.001]
[1762476974468,3.41229935,3325.8,3325.7,0.001]
[1762476974654,9.35591022,3325.8,3325.7,0.001]
[1762476974854,5.61431135,3325.8,3325.7,0.001]
[1762476975174,5.73477132,3325.8,3325.7,0.001]
[1762476975377,8.05000352,3325.8,3325.7,0.001]
[1762476975580,7.64449952,3325.8,3325.7,0.001]
[1762476975728,5.73477132,3325.8,3325.7,0.001]
[1762476976134,7.23903686,3325.8,3325.7,0.001]
[1762476979048,6.83353286,3325.8,3325.7,0.001]
[1762476980780,3.12725532,3325.8,3325.7,0.001]
[1762476980981,3.00679535,3325.8,3325.7,0.001]
[1762476981284,3.41229935,3325.8,3325.7,0.001]
[1762476984201,5.15581135,3325.8,3325.7,0.001]
[1762476984804,4.67201135,3325.8,3325.7,0.001]
[1762476985716,1.259712,3325.8,3325.7,0.001]
[1762476985916,4.26650735,3325.8,3325.7,0.001]
[1762476987266,3.00724746,3325.3,3325.2,0.001]
[1762476987465,3.00724746,3325.3,3325.0,0.001]
[1762476987466,4.6725539,3325.2,3325.0,0.001]
[1762476987787,6.64725723,3325.2,3325.0,0.001]
[1762476988791,5.6148539,3325.2,3325.0,0.001]
[1762476988988,5.73534907,3325.2,3325.0,0.001]
[1762476991216,4.67291571,3324.8,3324.7,0.001]
[1762476991425,0.405504,3324.6,3321.8,3.01033556]
[1762476991629,0.405504,3324.6,3322.0,3.01023479]
[1762476991630,0.405504,3324.0,3322.0,3.01023479]
[1762476991846,3.00878683,3323.6,3322.9,3.00935968]
[1762476992204,3.0090635,3323.3,3322.6,3.00965993]
[1762476992424,3.00902432,3323.4,3322.1,3.01014418]
[1762476992639,3.00902432,3323.4,3322.7,3.00952463]
[1762476992907,3.41415284,3323.8,3323.0,3.00926871]
[1762476993252,3.00870718,3323.7,3323.0,3.00926871]
[1762476993832,3.00880344,3323.6,3323.0,3.00926871]
[1762476994340,3.00880344,3323.6,3322.9,3.00939794]
[1762476994646,3.00884558,3323.6,3322.9,3.00939794]
[1762476994934,3.00884558,3323.6,3322.1,1.259712]
[1762476994935,3.00915864,3323.2,3322.1,1.259712]
[1762476995143,1.665216,3323.6,3322.8,3.0095008]
[1762476995305,0.1807,3324.3,3322.9,0.03009419]
[1762476995522,3.0085154,3323.9,3323.1,3.00923693]
[1762476995727,1.259712,3323.7,3323.1,3.00923693]
[1762476995922,1.259712,3324.2,3323.4,3.00896651]
[1762476996225,3.00881131,3323.6,3322.8,3.00945142]
[1762476996551,3.00906468,3323.3,3322.6,3.00964772]
[1762476996762,3.00915552,3323.2,3322.6,3.00964772]
[1762476996941,0.405504,3323.6,3322.2,0.42699468]
[1762476997256,0.1504,3322.8,3322.6,3.00962882]
[1762476998231,0.1504,3322.8,3322.5,3.00975342]
[1762476998432,0.1504,3322.8,3322.2,3.16044999]
[1762476998732,0.1504,3322.8,3322.3,3.00996297]
[1762476999066,0.1504,3322.8,3322.5,3.00970562]
[1762476999240,0.1504,3322.8,3321.7,3.01049283]
[1762476999445,3.4831295,3323.4,3321.8,1.56076128]
[1762476999768,3.00947755,3322.9,3322.2,3.01002374]
[1762476999956,3.00951968,3322.8,3322.1,3.01011023]
[1762477000264,3.00951968,3322.8,3321.4,3.01073351]
[1762477000476,3.00960705,3322.7,3322.1,3.01007292]
[1762477000630,3.00960705,3322.7,3321.5,3.0106841]
[1762477000836,3.00960705,3322.7,3321.6,1.68675161]
[1762477001148,3.20872979,3322.9,3321.6,1.68675161]
[1762477001332,3.00967666,3322.7,3322.0,3.0101862]
[1762477001734,0.4651,3322.1,3318.5,0.09999999]
[1762477002098,0.870604,3321.9,3320.3,3.01171085]
[1762477002365,3.01065612,3321.6,3319.5,3.01243983]
[1762477002569,0.405504,3321.8,3319.9,1.259712]
[1762477002739,3.01051152,3321.7,3320.7,3.01139999]
[1762477003101,3.01051152,3321.7,3319.5,3.01250188]
[1762477003102,3.01097027,3321.2,3319.5,3.01250188]
[1762477003378,3.01106321,3321.1,3319.6,0.37545019]
[1762477003563,0.891604,3321.5,3320.2,3.01179148]
[1762477003769,3.16853725,3321.0,3320.1,3.01189627]
[1762477003965,3.41673589,3320.9,3319.2,3.75473912]
[1762477004164,0.592904,3320.9,3319.2,0.742]
[1762477004484,0.15733049,3320.8,3318.8,0.743]
[1762477004710,0.15733049,3320.8,3319.5,1.259712]
[1762477004852,3.01141934,3320.7,3319.6,0.42722953]
[1762477005052,3.01141934,3320.7,3318.9,3.01304649]
[1762477005246,3.16866415,3320.8,3319.0,3.0129557]
[1762477005487,3.16866415,3320.8,3320.0,3.01200476]
[1762477005783,0.15733049,3320.8,3320.0,3.01203269]
[1762477005984,0.15733049,3320.8,3318.7,0.742]
[1762477005985,0.405504,3320.4,3318.7,0.742]
[1762477006286,0.405504,3320.4,3319.0,3.0129557]
[1762477006460,3.41720309,3320.4,3319.6,3.01232991]
[1762477006657,0.405504,3320.3,3319.1,0.42726677]
[1762477006857,0.405504,3320.4,3320.1,0.001]
[1762477007264,3.47696675,3320.2,3320.1,0.001]
[1762477007685,3.96306675,3320.2,3320.1,0.001]
[1762477007883,10.98347308,3320.2,3320.1,0.001]
[1762477008450,11.38897708,3320.2,3320.1,0.001]
[1762477009544,11.78681764,3320.2,3320.1,0.001]
[1762477009974,11.38897708,3320.2,3320.1,0.001]
[1762477011840,1.724812,3320.2,3320.1,0.001]
[1762477012103,5.22277875,3320.2,3320.1,0.001]
[1762477012306,5.22277875,3320.2,3319.7,0.001]
[1762477012307,1.259712,3319.8,3319.7,0.001]
[1762477012511,2.130316,3319.8,3319.7,0.001]
[1762477012697,5.14254565,3319.8,3319.7,0.001]
[1762477012893,5.62864565,3319.8,3319.7,0.001]
[1762477015227,5.76069433,3320.7,3319.7,0.001]
[1762477015524,3.01141423,3320.7,3319.9,3.01210807]
[1762477015671,3.16868255,3320.8,3320.0,3.31324554]
[1762477015876,1.665216,3320.7,3320.1,3.01194772]
[1762477016191,3.41694544,3320.7,3320.0,3.31325321]
[1762477016523,3.01144144,3320.7,3320.0,3.31325321]
[1762477016880,1.259712,3320.6,3320.1,3.01194405]
[1762477017082,1.41704249,3320.8,3320.2,3.01177653]
[1762477017282,0.15733049,3320.8,3320.1,0.33131549]
[1762477017519,1.41704249,3320.8,3320.2,3.01179817]
[1762477018015,0.405504,3320.7,3320.1,0.33131549]
[1762477018194,4.67689016,3320.5,3319.8,3.01222743]
[1762477018396,3.01169439,3320.4,3319.7,0.001]
[1762477018621,3.01169439,3320.4,3319.8,3.01221756]
[1762477019002,1.665216,3320.5,3319.9,3.01213441]
[1762477019235,0.405504,3320.6,3319.7,0.001]
[1762477019389,0.4861,3320.5,3319.7,0.001]
[1762477019588,3.01169331,3320.4,3319.7,0.001]
[1762477019828,3.01169331,3320.4,3319.7,3.01331925]
[1762477020033,0.4861,3320.5,3319.7,3.31465118]
[1762477020034,3.01178147,3320.3,3319.7,3.31465118]
[1762477020513,4.75740888,3320.5,3319.7,0.30233193]
[1762477020514,0.405504,3320.4,3319.7,0.30233193]
[1762477020686,3.66472965,3319.8,3319.7,0.001]
[1762477021037,1.259712,3320.1,3319.7,0.001]
[1762477021241,3.01222965,3319.8,3319.7,0.001]
[1762477021583,0.405504,3319.9,3319.7,0.001]
[1762477021818,0.405504,3320.0,3319.7,0.001]
[1762477022515,3.01214792,3319.9,3319.7,0.001]
[1762477023032,1.447112,3320.5,3319.7,0.001]
[1762477023232,0.1504,3320.0,3319.7,3.01330284]
[1762477023526,0.1504,3320.0,3319.7,0.001]
[1762477023686,3.0121316,3320.0,3319.7,0.001]
[1762477023885,3.01186675,3320.2,3319.7,0.001]
[1762477023886,0.405504,3320.1,3319.7,0.001]
[1762477024283,3.01222965,3319.8,3319.7,0.001]
[1762477024516,4.27194165,3319.8,3319.7,0.001]
[1762477024720,4.73704165,3319.8,3319.7,0.001]
[1762477025025,0.002,3320.2,3319.8,3.01221827]
[1762477025322,0.002,3320.2,3320.1,3.01195747]
[1762477027746,0.002,3320.9,3320.5,3.01159463]
[1762477028044,0.002,3320.9,3320.8,3.01132257]
[1762477031166,0.15730591,3321.7,3321.6,3.0105973]
[1762477031370,0.15730591,3321.7,3321.6,3.61272686]
[1762477031562,0.15730591,3321.7,3320.6,2.002712]
[1762477031733,0.15730591,3321.7,3320.8,3.01132257]
[1762477032119,0.15730591,3321.7,3321.4,3.01077471]
[1762477032952,0.15730591,3321.7,3321.2,3.01093989]
[1762477033255,0.15730591,3321.7,3321.1,3.01097367]
[1762477033453,0.15730591,3321.7,3321.4,3.01076139]
[1762477033616,0.15730591,3321.7,3321.1,0.45149737]
[1762477033617,0.30770591,3321.7,3321.1,0.45149737]
[1762477033954,0.1504,3322.2,3321.7,3.01050666]
[1762477034252,0.1504,3322.5,3322.3,3.00995532]
[1762477034415,1.4169644,3322.8,3322.3,3.00993933]
[1762477034751,0.1572524,3322.8,3322.3,3.00993933]
[1762477035145,0.1572524,3322.8,3322.2,3.0100456]
[1762477035753,0.1572524,3322.8,3322.3,3.00995074]
[1762477036552,0.1572524,3322.8,3322.2,3.01005357]
[1762477036742,0.1572524,3322.8,3322.4,3.00986177]
[1762477037054,0.1572524,3322.8,3322.3,3.00988259]
[1762477037250,1.4169644,3322.8,3321.6,3.0105973]
[1762477037450,3.16679081,3322.8,3321.7,0.37515973]
[1762477037760,0.1572524,3322.8,3322.3,3.00988087]
[1762477038122,0.1572524,3322.8,3322.4,3.00984239]
[1762477038325,0.1572524,3322.8,3322.3,3.00989421]
[1762477039017,0.1572524,3322.8,3321.7,0.37515973]
[1762477039222,1.259712,3322.7,3321.5,0.741]
[1762477039421,1.8882644,3322.8,3321.6,3.0105973]
[1762477039725,1.8882644,3322.8,3322.2,3.0100181]
[1762477039939,1.8882644,3322.8,3322.3,3.00994369]
[1762477040156,0.6285524,3322.8,3322.3,3.00994369]
[1762477040367,0.1572524,3322.8,3321.6,3.0105973]
[1762477040523,0.6285524,3322.8,3321.8,3.01041603]
[1762477040860,0.1572524,3322.8,3322.4,3.0098486]
[1762477041553,0.1572524,3322.8,3321.8,3.01037918]
[1762477041857,0.1572524,3322.8,3321.7,0.37515973]
[1762477042043,0.1572524,3322.8,3322.7,3.00960062]
[1762477042436,0.1572524,3322.8,3322.0,0.739]
[1762477042954,0.1592524,3322.8,3322.4,3.0098006]
[1762477043153,0.1592524,3322.8,3322.2,3.01002185]
[1762477043154,0.1592524,3322.8,3322.2,3.00996958]
[1762477043522,3.16877059,3322.8,3322.2,3.00996958]
[1762477043744,0.6305524,3322.8,3322.3,3.00995775]
[1762477043956,0.1592524,3322.8,3322.1,0.30101671]
[1762477044260,0.1592524,3322.8,3322.3,3.00990681]
[1762477044484,0.3096524,3322.8,3322.3,3.00990681]
[1762477044775,0.7809524,3322.8,3322.2,0.1504]
[1762477044975,0.4708,3322.3,3320.7,3.8]
[1762477045119,3.01024903,3322.0,3321.4,3.16116498]
[1762477045325,0.1859,3321.9,3321.4,3.16116498]
[1762477045956,0.1859,3321.9,3320.8,4.13028877]
[1762477045957,3.0097948,3322.5,3321.8,3.01034764]
[1762477046131,1.259712,3322.4,3320.8,1.119]
[1762477046342,3.01010744,3322.2,3320.9,3.24910309]
[1762477046539,3.01024445,3322.0,3321.4,3.01076087]
[1762477046758,0.4713,3322.1,3321.3,3.01083157]
[1762477046925,1.731012,3322.2,3321.0,3.01114122]
[1762477047259,3.48138874,3322.2,3321.5,3.01064953]
[1762477047433,0.4713,3322.2,3321.1,0.32490124]
[1762477047638,0.4713,3322.2,3321.6,3.01053572]
[1762477047853,0.4713,3322.2,3320.9,0.2378712]
[1762477048036,3.48137639,3322.2,3321.6,3.01053987]
[1762477048485,3.48137639,3322.2,3321.5,3.01062961]
[1762477048805,0.405504,3322.6,3321.6,0.03010597]
[1762477048991,1.259712,3322.4,3321.8,3.01032721]
[1762477049192,1.259712,3322.4,3321.9,3.01026602]
[1762477049385,1.259712,3322.5,3321.3,3.01077902]
[1762477049704,3.00978896,3322.5,3321.9,3.01026832]
[1762477050167,3.00970491,3322.6,3322.0,3.01021371]
[1762477050602,1.259712,3322.5,3322.1,3.0101441]
[1762477050794,0.4713,3322.6,3322.2,3.01003434]
[1762477051770,0.4713,3322.6,3322.1,3.01010963]
[1762477052501,0.4713,3322.6,3322.2,3.01004855]
[1762477053070,3.48100652,3322.6,3322.0,3.01020631]
[1762477053299,0.4713,3322.6,3321.5,3.01062964]
[1762477053502,1.731012,3322.6,3322.3,3.00995865]
[1762477053681,1.4189644,3322.8,3321.6,0.33117075]
[1762477053881,0.1592524,3322.8,3322.3,3.00991294]
[1762477054084,3.16877367,3322.8,3322.1,3.01010604]
[1762477054271,3.00965075,3322.7,3321.5,3.74765949]
[1762477054478,3.48102939,3322.6,3322.0,3.01016781]
[1762477054702,0.4713,3322.5,3322.0,3.01016781]
[1762477054906,0.4713,3322.5,3321.9,3.01032541]
[1762477055092,0.4713,3322.5,3322.0,3.01018019]
[1762477055975,0.6217,3322.5,3322.0,3.01018019]
[1762477056206,0.6217,3322.5,3321.9,0.1504]
[1762477056404,0.6217,3322.5,3322.0,3.01016758]
[1762477056911,0.6217,3322.5,3322.1,3.01013833]
[1762477057210,0.1592524,3322.8,3322.1,0.61708595]
[1762477057413,0.4713,3322.7,3322.4,0.1504]
[1762477057707,0.4713,3322.7,3322.2,3.16042304]
[1762477058012,0.4713,3322.7,3322.3,3.00994255]
[1762477058177,1.5693644,3322.8,3322.3,3.00994255]
[1762477058379,0.1592524,3322.8,3322.4,3.00985168]
[1762477058577,0.1592524,3322.8,3322.4,0.30098517]
[1762477058812,0.1592524,3322.8,3322.7,3.00960062]
[1762477059242,0.1592524,3322.8,3322.6,3.00965062]
[1762477059440,0.4842,3322.6,3322.5,3.16018154]
[1762477059718,0.4842,3322.6,3322.4,3.0098666]
[1762477060309,0.6371524,3322.8,3322.5,3.00969765]
[1762477062024,0.6371524,3322.8,3322.3,0.1504]
[1762477062194,0.4856,3322.7,3322.3,0.1504]
[1762477062537,0.1592524,3322.8,3322.7,3.00960062]
[1762477062677,0.1592524,3322.8,3322.0,3.01017965]
[1762477062877,0.1592524,3322.8,3322.5,3.16013017]
[1762477063105,0.1592524,3322.8,3322.4,3.00985988]
[1762477063527,0.6448524,3322.8,3322.4,3.00985988]
[1762477063729,0.1592524,3322.8,3322.3,0.1504]
[1762477063929,0.1592524,3322.8,3322.7,3.00960062]
[1762477064106,0.1592524,3322.8,3322.6,3.00965575]
[1762477064806,0.1592524,3322.8,3322.6,3.00965724]
[1762477065005,0.4653,3322.7,3321.3,3.01081075]
[1762477065203,3.00978179,3322.5,3321.5,0.71119017]
[1762477065405,0.9509,3322.6,3321.8,3.01035773]
[1762477065724,0.4856,3322.5,3321.4,1.0350779]
[1762477065929,0.64286436,3322.5,3321.7,3.01044435]
[1762477066244,0.64286436,3322.5,3321.8,3.01039502]
[1762477066245,3.00993998,3322.4,3321.8,3.01039502]
[1762477066447,3.49555051,3322.4,3321.2,3.01095989]
[1762477066602,3.49556336,3322.3,3321.3,0.37449599]
[1762477066806,0.4856,3322.3,3321.7,3.01042388]
[1762477067140,0.4856,3322.2,3321.8,3.01040293]
[1762477067437,0.4856,3322.2,3321.4,3.01074204]
[1762477067736,0.4856,3322.2,3321.6,3.01054068]
[1762477068102,0.4856,3322.2,3321.3,0.37449599]
[1762477068307,0.4856,3322.2,3321.8,3.01040779]
[1762477068531,0.4856,3322.2,3321.6,3.01057931]
[1762477068741,0.4856,3322.2,3321.7,3.010483]
[1762477068923,0.4856,3322.2,3321.8,3.01039013]
[1762477069130,0.4856,3322.2,3321.9,3.01031378]
[1762477069330,0.4653,3322.0,3321.9,3.01031378]
[1762477069532,0.4653,3322.0,3321.7,3.01042677]
[1762477070044,0.4653,3322.0,3321.2,3.01095989]
[1762477070045,0.9509,3322.0,3321.8,3.01041179]
[1762477070609,0.4653,3322.0,3321.8,3.01041179]
[1762477070813,0.4856,3322.3,3321.9,3.01027137]
[1762477071014,0.15726436,3322.5,3321.9,0.60207696]
[1762477071215,0.002,3322.8,3322.0,0.733]
[1762477071428,0.002,3322.8,3321.0,4.27081971]
[1762477071429,0.4856,3322.7,3321.8,0.734]
[1762477071627,0.4856,3322.7,3322.3,3.00995674]
[1762477071926,0.15923251,3322.8,3322.6,3.00961797]
[1762477072247,0.15923251,3322.8,3321.7,3.01050666]
[1762477072460,0.15923251,3322.8,3322.7,3.00960062]
[1762477072814,0.002,3322.8,3322.7,3.00960062]
[1762477073261,0.002,3322.8,3321.9,1.259712]
[1762477073472,0.002,3322.8,3322.7,3.00960062]
[1762477074455,0.9529,3322.8,3321.8,2.29476267]
[1762477074652,0.4653,3322.6,3322.4,3.00986052]
[1762477075651,0.4653,3322.5,3322.2,0.1504]
[1762477075852,0.4653,3322.5,3322.4,3.00987238]
[1762477076055,0.1524,3322.8,3322.4,3.00987238]
[1762477076352,0.1524,3322.8,3322.2,0.1504]
[1762477076523,0.1524,3322.8,3322.6,3.00965305]
[1762477077352,0.1524,3322.8,3322.5,3.00975187]
[1762477077659,0.1524,3322.8,3322.2,0.1504]
[1762477077952,0.1524,3322.8,3322.5,3.00972284]
[1762477078259,0.1524,3322.8,3322.6,3.00968691]
[1762477078645,0.1524,3322.8,3322.7,3.00960062]
[1762477081755,0.002,3322.8,3322.7,3.00960062]
[1762477082533,0.9529,3322.8,3322.4,0.1504]
[1762477082857,0.4673,3322.8,3322.7,3.00960062]
[1762477083060,0.002,3322.8,3322.7,3.61153674]
[1762477086850,0.002,3322.8,3322.7,3.64163274]
[1762477087057,0.002,3322.8,3322.7,3.61153674]
[1762477089774,1e-08,3323.2,3322.9,3.00941948]
[1762477090069,1e-08,3323.2,3323.1,3.00923836]
[1762477091976,1e-08,3323.2,3323.1,3.03933074]
[1762477092378,1e-08,3323.2,3323.1,3.00923836]
[1762477093078,1e-08,3323.2,3323.1,3.15963836]
[1762477093591,1e-08,3323.2,3323.1,3.18973074]
[1762477093891,1e-08,3323.2,3323.1,5.60805106]
[1762477094091,1e-08,3323.2,3323.1,9.22755868]
[1762477094285,1e-08,3323.2,3323.1,9.37795868]
[1762477097208,0.002,3324.7,3324.2,3.00815575]
[1762477097384,0.002,3324.7,3324.2,3.73615575]
[1762477097571,0.002,3324.7,3324.6,3.00788064]
[1762477097770,0.002,3324.7,3324.6,3.15748064]
[1762477098809,0.002,3324.7,3324.6,3.18755944]
[1762477099171,0.002,3324.7,3324.6,3.15748064]
[1762477099371,0.9667,3324.7,3324.6,0.1496]
[1762477099608,0.9667,3324.7,3324.6,3.15748064]
[1762477099780,0.9667,3324.7,3324.6,3.00788064]
[1762477100105,0.4995,3324.7,3324.6,3.00788064]
[1762477100681,0.002,3324.7,3324.6,3.00788064]
[1762477100906,0.002,3324.7,3324.6,3.63955162]
[1762477101617,0.15911353,3325.4,3325.3,4.26695946]
[1762477101618,0.002,3325.4,3325.3,4.26695946]
[1762477101795,0.002,3325.4,3325.3,5.42953593]
[1762477101997,0.002,3325.4,3325.3,4.99395946]
[1762477102228,0.002,3325.4,3325.3,6.37140371]
[1762477103717,1e-08,3325.8,3325.7,4.26659776]
[1762477103901,1e-08,3325.8,3325.7,4.99459776]
[1762477105640,1e-08,3325.8,3325.7,4.99459776]
[1762477106200,1e-08,3325.8,3325.7,5.40010176]
[1762477106533,1e-08,3325.8,3325.7,6.81812407]
[1762477108822,1e-08,3326.5,3326.4,4.265965]
[1762477109049,1e-08,3326.5,3326.4,4.993965]
[1762477109259,0.49750001,3326.5,3326.4,4.993965]
[1762477109463,1e-08,3326.5,3326.4,4.993965]
[1762477109754,1e-08,3326.5,3326.4,5.79399696]
[1762477109922,1e-08,3326.5,3326.4,5.94359696]
[1762477110853,1e-08,3326.5,3326.4,5.79299696]
[1762477113619,1e-08,3326.5,3326.4,6.19850096]
[1762477116835,1e-08,3327.2,3327.1,3.00562051]
[1762477117022,1e-08,3327.2,3327.1,5.29289456]
[1762477118417,1e-08,3327.2,3327.1,5.72845476]
[1762477118624,1e-08,3327.2,3327.1,5.69839856]
[1762477118942,1e-08,3327.2,3327.1,5.72845476]
[1762477119154,1e-08,3327.2,3327.1,5.69839856]
[1762477119945,1e-08,3327.2,3327.1,5.84946105]
[1762477120955,1e-08,3327.2,3327.1,5.99906105]
[1762477123235,0.002,3328.8,3328.6,3.00426605]
[1762477123440,0.002,3328.8,3328.6,3.73026605]
[1762477123736,0.002,3328.8,3328.6,3.87986605]
[1762477124045,0.002,3328.8,3328.6,5.13957805]
[1762477124248,1e-08,3328.8,3328.6,5.54508205]
[1762477124462,1e-08,3328.8,3328.7,5.22390001]
[1762477125041,1e-08,3328.8,3328.7,5.25394176]
[1762477125241,1e-08,3328.8,3328.7,8.42594176]
[1762477125443,1e-08,3328.8,3328.7,5.22390001]
[1762477126360,1e-08,3328.8,3328.7,5.25394176]
[1762477127271,1e-08,3328.8,3328.7,5.22390001]
[1762477127891,1e-08,3328.8,3328.7,5.40354176]
[1762477128237,0.65790001,3328.8,3328.7,5.94990001]
[1762477128467,1e-08,3328.8,3328.7,5.94990001]
[1762477129543,0.46590001,3328.8,3328.7,5.94990001]
[1762477129853,1e-08,3328.8,3328.7,5.94990001]
[1762477130255,0.46590001,3328.8,3328.7,5.94990001]
[1762477130440,0.46590001,3328.8,3328.7,4.9898878]
[1762477130441,0.92840001,3328.8,3328.7,4.9898878]
[1762477130780,1e-08,3328.8,3328.7,4.9898878]
[1762477131141,0.92840001,3328.8,3328.7,4.9898878]
[1762477138045,0.92840001,3328.8,3327.3,5.77313437]
[1762477138296,0.9284,3328.7,3327.4,1.36330405]
[1762477138461,0.9284,3328.7,3328.6,3.00426605]
[1762477138796,0.4659,3328.7,3328.6,3.15386605]